bitfinex/quotes_BTCUSD_20230113
["timestamp","ask_amount","ask_price","bid_price","bid_amount"]
[1673622456061,0.48563069,19060.0,19059.0,0.00603974]
[1673622456336,0.70351917,19060.0,19059.0,0.00503974]
[1673622456563,0.70351917,19060.0,19057.0,0.00669748]
[1673622456564,0.1,19058.0,19057.0,0.00669748]
[1673622456813,0.6168,19058.0,19057.0,0.00669748]
[1673622457059,0.65213069,19058.0,19057.0,0.57504532]
[1673622457308,0.33533069,19058.0,19057.0,0.06420201]
[1673622457557,0.3,19058.0,19057.0,0.54524428]
[1673622457810,0.3,19058.0,19057.0,0.00669748]
[1673622458066,0.03132923,19061.0,19059.0,0.1]
[1673622458307,0.03533069,19062.0,19059.0,0.37643151]
[1673622458561,0.03844097,19063.0,19060.0,0.21030494]
[1673622458857,0.04114698,19062.0,19060.0,0.21030494]
[1673622459068,0.04007849,19064.0,19061.0,0.73941289]
[1673622459315,0.04007849,19064.0,19061.0,0.94971783]
[1673622459560,0.04219338,19063.0,19061.0,0.82471783]
[1673622459812,0.04819338,19063.0,19061.0,0.61441289]
[1673622460057,0.04219338,19063.0,19061.0,0.61441289]
[1673622460318,0.04219338,19063.0,19061.0,0.61741289]
[1673622460552,0.04219338,19063.0,19061.0,0.61441289]
[1673622460808,0.10219338,19063.0,19061.0,0.61741289]
[1673622461045,0.06018504,19061.0,19059.0,0.64781574]
[1673622461559,0.06018504,19061.0,19058.0,1.1303]
[1673622462057,4.27693879,19077.0,19059.0,0.21030494]
[1673622462331,1.11291059,19088.0,19077.0,11.1577]
[1673622462585,0.3531241,19079.0,19078.0,0.327655]
[1673622462883,1.16795837,19112.0,19078.0,0.327655]
[1673622462884,0.31196753,19103.0,19087.0,2.91979943]
[1673622463117,0.99805237,19118.0,19105.0,0.78001585]
[1673622463369,0.41991697,19123.0,19117.0,0.5262327]
[1673622463619,0.00510476,19122.0,19116.0,0.22949963]
[1673622463896,0.12328101,19125.0,19121.0,0.28636567]
[1673622464149,2.00248207,19126.0,19120.0,0.82661716]
[1673622464392,0.63699255,19125.0,19122.0,1.58578462]
[1673622464654,0.08382447,19126.0,19121.0,1.16246233]
[1673622464655,0.08382447,19126.0,19123.0,1.772591]
[1673622464918,0.08382447,19126.0,19124.0,1.26391154]
[1673622465232,0.73653764,19125.0,19123.0,0.0085]
[1673622465433,0.08382447,19126.0,19125.0,0.22539496]
[1673622465682,0.08382447,19126.0,19125.0,1.09910805]
[1673622465932,0.7436634,19126.0,19124.0,0.15023818]
[1673622466177,0.08382447,19126.0,19125.0,0.99778804]
[1673622466439,0.08382447,19126.0,19125.0,0.79297137]
[1673622466738,0.08382447,19126.0,19125.0,0.30047637]
[1673622466950,0.1,19125.0,19119.0,0.66003239]
[1673622467202,0.6,19121.0,19119.0,1.43374264]
[1673622467458,0.6,19121.0,19116.0,1.7573]
[1673622467459,1.06323264,19120.0,19116.0,1.7573]
[1673622467754,0.6,19118.0,19116.0,1.7573]
[1673622467983,1.36323264,19117.0,19107.0,0.67893701]
[1673622468233,0.6,19113.0,19109.0,0.2]
[1673622468479,1.06323264,19112.0,19110.0,1.7573]
[1673622468731,0.73653764,19111.0,19108.0,0.5263597]
[1673622468997,0.5262327,19110.0,19105.0,2.1261]
[1673622469277,0.73514906,19109.0,19103.0,1.54452084]
[1673622469514,0.10891636,19108.0,19103.0,1.54452084]
[1673622469769,0.10891636,19108.0,19102.0,0.53724118]
[1673622469770,1.64364906,19107.0,19102.0,0.53724118]
[1673622470012,1.06184406,19106.0,19099.0,0.6]
[1673622470302,1.96184406,19105.0,19098.0,0.54260018]
[1673622470533,0.73561136,19104.0,19098.0,0.5398726]
[1673622470794,0.10891636,19103.0,19098.0,0.54030254]
[1673622471041,1.1649,19105.0,19104.0,0.80860678]
[1673622471288,1.0729009,19105.0,19104.0,0.28886757]
[1673622471584,2.01029509,19105.0,19104.0,0.21977338]
[1673622471797,2.01029509,19105.0,19094.0,1.84874386]
[1673622471798,0.1,19104.0,19094.0,1.84874386]
[1673622472045,1.1658,19099.0,19094.0,1.84874386]
[1673622472330,0.1644,19095.0,19094.0,1.7394153]
[1673622472579,0.5505708,19098.0,19094.0,1.7394153]
[1673622472580,0.61824085,19098.0,19094.0,2.865648]
[1673622472838,0.05903836,19106.0,19102.0,0.91924708]
[1673622473090,0.1,19107.0,19103.0,1.00364978]
[1673622473356,0.1,19115.0,19105.0,0.6]
[1673622473606,0.1,19115.0,19114.0,0.80575235]
[1673622473858,0.17160017,19115.0,19114.0,1.34256329]
[1673622474118,0.17160017,19115.0,19104.0,0.6]
[1673622474119,0.21030493,19114.0,19104.0,0.6]
[1673622474397,0.22703,19108.0,19105.0,0.20891636]
[1673622474632,0.22703,19106.0,19102.0,0.91924708]
[1673622474886,0.1,19103.0,19102.0,0.91924708]
[1673622475139,0.63699993,19103.0,19102.0,0.91924708]
[1673622475456,0.94549993,19103.0,19102.0,0.91924708]
[1673622475921,0.94549993,19103.0,19094.0,1.7394153]
[1673622475922,0.61924,19102.0,19094.0,1.7394153]
[1673622476174,0.61086007,19101.0,19097.0,0.37297]
[1673622476419,0.326695,19100.0,19095.0,0.52030589]
[1673622476668,0.326695,19099.0,19095.0,0.5262327]
[1673622476919,0.1,19103.0,19095.0,0.5262327]
[1673622476920,0.1,19106.0,19099.0,0.37297]
[1673622477180,0.04354764,19111.0,19105.0,0.37297]
[1673622477446,0.04354764,19111.0,19107.0,0.37297]
[1673622477690,0.14533382,19109.0,19108.0,0.2557]
[1673622477985,0.47202882,19109.0,19103.0,0.65012829]
[1673622478208,0.53699993,19108.0,19103.0,0.20891636]
[1673622478456,0.26400492,19107.0,19101.0,0.37297]
[1673622478732,0.26400492,19107.0,19103.0,0.37275959]
[1673622478733,0.21030493,19106.0,19103.0,0.37275959]
[1673622478980,0.4,19105.0,19103.0,0.37275959]
[1673622479489,0.1644,19108.0,19103.0,0.58167595]
[1673622479735,0.01893382,19109.0,19107.0,0.37275959]
[1673622479995,0.1,19113.0,19108.0,1.06184406]
[1673622480249,3.75395855,19121.0,19105.0,0.62081146]
[1673622480250,0.1646,19122.0,19112.0,0.37275959]
[1673622480523,0.80976,19121.0,19111.0,0.37275959]
[1673622480754,0.80976,19121.0,19113.0,0.51806298]
[1673622480755,0.1658,19117.0,19113.0,0.51806298]
[1673622481002,0.1658,19117.0,19109.0,0.40967781]
[1673622481003,1.7658,19115.0,19110.0,0.51763341]
[1673622481253,0.4985689,19114.0,19110.0,0.20891636]
[1673622481502,0.326695,19113.0,19109.0,0.37118489]
[1673622481757,0.1,19111.0,19109.0,0.37118489]
[1673622482054,0.31030493,19111.0,19109.0,0.37118489]
[1673622482261,0.11,19111.0,19109.0,0.05680145]
[1673622482512,0.07151,19110.0,19109.0,0.05680145]
[1673622482773,0.480751,19109.0,19099.0,0.92539303]
[1673622483087,0.7658,19107.0,19101.0,0.31438344]
[1673622483286,0.335195,19106.0,19101.0,0.31438344]
[1673622483529,0.83699993,19105.0,19100.0,0.31438344]
[1673622483786,0.53699993,19104.0,19100.0,0.1]
[1673622484039,0.3,19103.0,19100.0,0.045]
[1673622484326,0.51030493,19103.0,19099.0,0.92539303]
[1673622484560,0.03137961,19105.0,19103.0,0.38969506]
[1673622485047,1.473541,19109.0,19103.0,0.38969506]
[1673622485048,1.4195,19113.0,19104.0,1.1289156]
[1673622485297,1.4195,19113.0,19110.0,0.31438344]
[1673622485579,0.1,19114.0,19111.0,0.21030494]
[1673622485824,0.326843,19113.0,19112.0,0.21030494]
[1673622486309,0.1045582,19113.0,19107.0,2.6261]
[1673622486569,0.1658,19109.0,19105.0,0.40852227]
[1673622486829,0.1658,19109.0,19105.0,0.09413883]
[1673622486830,0.326843,19108.0,19105.0,0.09413883]
[1673622487072,0.1658,19109.0,19103.0,0.7040785]
[1673622487073,0.491443,19107.0,19103.0,0.7040785]
[1673622487320,0.1649,19109.0,19104.0,0.31438344]
[1673622487572,0.06275922,19108.0,19106.0,0.31438344]
[1673622487818,0.06275922,19108.0,19106.0,0.25232344]
[1673622487819,0.16275922,19108.0,19106.0,0.25232344]
[1673622488076,0.03137961,19108.0,19107.0,0.21030494]
[1673622488347,1.3615,19116.0,19107.0,0.82988314]
[1673622488582,0.16241578,19115.0,19109.0,0.25232344]
[1673622488833,0.83351078,19116.0,19110.0,0.71334508]
[1673622489079,0.1646,19119.0,19111.0,0.21030494]
[1673622489080,0.14253,19119.0,19111.0,0.21030494]
[1673622489323,0.39864846,19118.0,19114.0,0.25232344]
[1673622489578,0.39864846,19118.0,19115.0,0.21030494]
[1673622489579,0.426843,19117.0,19115.0,0.21030494]
[1673622489833,0.426843,19117.0,19110.0,0.50262902]
[1673622489834,0.66403791,19116.0,19110.0,0.50262902]
[1673622490103,0.426843,19115.0,19107.0,0.0738418]
[1673622490356,0.426843,19115.0,19112.0,0.25232344]
[1673622490357,0.326843,19114.0,19112.0,0.25232344]
[1673622490708,0.03137961,19115.0,19112.0,0.25232344]
[1673622490858,0.1,19117.0,19112.0,0.25232344]
[1673622491100,0.33030494,19117.0,19114.0,0.25232344]
[1673622491370,0.326843,19116.0,19114.0,0.46123979]
[1673622491618,0.426843,19115.0,19114.0,0.25232344]
[1673622492369,0.70874811,19115.0,19112.0,0.25232344]
[1673622492627,0.0551951,19111.0,19093.0,0.67141743]
[1673622492881,0.05467445,19096.0,19090.0,0.1]
[1673622493693,0.03137961,19095.0,19090.0,0.1]
[1673622493951,0.03137961,19095.0,19090.0,0.6262327]
[1673622493952,0.21030494,19094.0,19090.0,0.6262327]
[1673622494204,0.03137961,19095.0,19091.0,0.326843]
[1673622494205,0.51030494,19093.0,19091.0,0.326843]
[1673622494477,0.51030494,19093.0,19090.0,0.6262327]
[1673622494749,0.51030494,19095.0,19093.0,1.44413688]
[1673622494988,0.3,19095.0,19094.0,0.304124]
[1673622495235,0.3,19095.0,19093.0,1.44413688]
[1673622495474,0.626843,19094.0,19093.0,1.44413688]
[1673622495740,0.33137961,19095.0,19094.0,0.93788103]
[1673622495741,0.09438961,19095.0,19094.0,0.93788103]
[1673622496472,0.03137961,19095.0,19094.0,0.93788103]
[1673622496960,0.09438961,19095.0,19094.0,0.93788103]
[1673622497206,0.42123261,19095.0,19094.0,0.93788103]
[1673622497456,0.05467445,19096.0,19094.0,0.93788103]
[1673622497696,0.05467445,19096.0,19095.0,1.103603]
[1673622497960,0.05467445,19096.0,19095.0,0.426897]
[1673622498198,0.24133,19101.0,19095.0,0.426897]
[1673622498439,0.24133,19101.0,19096.0,0.20891635]
[1673622498685,3.0888743,19106.0,19097.0,0.20891635]
[1673622498686,1.4186,19106.0,19097.0,0.20891635]
[1673622498932,1.49204895,19106.0,19098.0,0.72155297]
[1673622499194,1.49204895,19106.0,19099.0,0.72155297]
[1673622499440,0.02786524,19108.0,19100.0,0.72155297]
[1673622499688,0.52358686,19108.0,19101.0,0.72155297]
[1673622499938,0.2530552,19107.0,19102.0,0.20891635]
[1673622500188,0.49022465,19110.0,19103.0,0.20891635]
[1673622500434,0.07089301,19111.0,19104.0,0.53572235]
[1673622500705,0.07089301,19111.0,19105.0,0.20891635]
[1673622500959,0.07089301,19111.0,19106.0,0.20891635]
[1673622501203,0.07089301,19111.0,19107.0,0.20891635]
[1673622501460,0.07089301,19111.0,19108.0,0.20891635]
[1673622501988,0.07089301,19111.0,19107.0,0.5108164]
[1673622501989,0.07089301,19111.0,19109.0,0.20891635]
[1673622502215,0.07089301,19111.0,19110.0,0.53572235]
[1673622502714,0.07089301,19111.0,19110.0,0.326806]
[1673622503453,0.07089301,19111.0,19108.0,1.04611285]
[1673622503700,0.21030494,19111.0,19108.0,0.53529645]
[1673622504187,0.21030494,19111.0,19107.0,1.1340805]
[1673622504437,0.3,19110.0,19107.0,0.6232641]
[1673622504691,0.53711094,19109.0,19103.0,1.060036]
[1673622504950,0.57810203,19108.0,19102.0,0.55027178]
[1673622505192,0.51030494,19107.0,19102.0,0.55027178]
[1673622505442,0.53711094,19106.0,19102.0,0.55027178]
[1673622505692,0.3,19107.0,19106.0,0.19390146]
[1673622505693,0.32786524,19107.0,19106.0,0.19390146]
[1673622505943,0.65045024,19107.0,19106.0,0.19390146]
[1673622506186,0.1,19106.0,19101.0,0.1]
[1673622506435,0.1,19106.0,19099.0,0.1]
[1673622506685,0.322585,19105.0,19099.0,0.1]
[1673622506927,0.08181192,19105.0,19097.0,0.14907545]
[1673622507171,0.314085,19104.0,19097.0,0.21030494]
[1673622507431,0.38181192,19105.0,19101.0,0.60561719]
[1673622507432,0.3,19105.0,19101.0,0.60561719]
[1673622507675,0.3,19105.0,19102.0,0.63711994]
[1673622507919,0.3,19105.0,19102.0,0.31030494]
[1673622508170,0.33,19105.0,19099.0,0.5089511]
[1673622508412,0.35045024,19104.0,19099.0,0.21030494]
[1673622508666,0.3,19103.0,19098.0,0.1]
[1673622509177,0.3,19103.0,19098.0,0.31030494]
[1673622509426,0.3,19103.0,19099.0,0.326815]
[1673622509693,0.02786524,19104.0,19098.0,0.1]
[1673622509694,0.37253048,19104.0,19098.0,0.1]
[1673622509939,0.05573048,19104.0,19099.0,0.73653764]
[1673622510217,0.05573048,19104.0,19100.0,1.06335264]
[1673622510465,0.14114,19112.0,19104.0,0.13932619]
[1673622510466,0.14114,19111.0,19104.0,0.13932619]
[1673622510711,0.1,19110.0,19105.0,1.04381058]
[1673622510959,0.01728048,19113.0,19106.0,0.21030494]
[1673622511204,0.04163743,19114.0,19107.0,0.63711994]
[1673622511451,0.04163743,19114.0,19108.0,0.71505062]
[1673622511699,0.04163743,19114.0,19109.0,0.71505062]
[1673622511941,0.04163743,19114.0,19110.0,0.21030494]
[1673622512191,0.1,19115.0,19111.0,0.21030494]
[1673622512444,0.25682791,19117.0,19112.0,0.21030494]
[1673622512445,0.11569791,19117.0,19112.0,0.21030494]
[1673622512706,0.01569791,19117.0,19113.0,0.21030494]
[1673622512976,0.01569791,19117.0,19114.0,0.51983946]
[1673622513224,0.01569791,19117.0,19115.0,1.04186562]
[1673622513546,0.01569791,19117.0,19116.0,0.32627917]
[1673622513768,0.01569791,19117.0,19111.0,0.14066]
[1673622513769,0.07870791,19117.0,19110.0,0.1]
[1673622514016,0.01569791,19117.0,19112.0,0.54261166]
[1673622514275,0.01569791,19117.0,19111.0,0.54852177]
[1673622514527,0.01569791,19117.0,19111.0,0.75882671]
[1673622514771,0.01569791,19117.0,19111.0,0.21030494]
[1673622515256,0.326649,19116.0,19111.0,0.21030494]
[1673622515500,0.326649,19116.0,19109.0,0.79312115]
[1673622515501,0.4,19115.0,19109.0,0.79312115]
[1673622515771,0.4,19115.0,19108.0,0.50084215]
[1673622516021,0.4,19115.0,19108.0,0.21030494]
[1673622516279,0.4,19115.0,19109.0,0.21030494]
[1673622516783,0.1,19114.0,19109.0,0.21030494]
[1673622517043,0.326649,19113.0,19106.0,0.1]
[1673622517280,1.08881078,19114.0,19106.0,0.45189494]
[1673622517281,0.3,19112.0,19106.0,0.45189494]
[1673622517530,0.3,19112.0,19107.0,0.69388052]
[1673622517777,0.3,19112.0,19108.0,0.426649]
[1673622518035,0.3,19112.0,19108.0,0.31030494]
[1673622518313,0.3,19112.0,19109.0,0.21030494]
[1673622518559,0.3,19116.0,19110.0,0.63695394]
[1673622518802,0.01569791,19117.0,19111.0,0.53695394]
[1673622518803,0.31569791,19117.0,19111.0,0.53695394]
[1673622519047,0.1,19116.0,19112.0,0.21030494]
[1673622519297,0.1,19116.0,19113.0,0.21030494]
[1673622519807,0.326649,19115.0,19110.0,0.50160622]
[1673622520061,0.11569791,19117.0,19110.0,0.50160622]
[1673622520062,0.01569791,19117.0,19111.0,0.73653764]
[1673622520322,0.01569791,19117.0,19113.0,0.1]
[1673622520571,0.01569791,19117.0,19114.0,0.53695394]
[1673622520892,0.01569791,19117.0,19115.0,0.326649]
[1673622521122,0.07870791,19117.0,19116.0,0.326649]
[1673622521366,0.07870791,19117.0,19111.0,1.08210632]
[1673622521618,0.07870791,19117.0,19109.0,0.60017563]
[1673622521619,0.0235687,19117.0,19109.0,0.60017563]
[1673622521877,0.4120373,19117.0,19109.0,0.82569685]
[1673622522154,0.1,19115.0,19110.0,0.21030494]
[1673622522399,0.1,19115.0,19109.0,0.61539191]
[1673622522665,0.02474299,19114.0,19106.0,0.1]
[1673622522904,0.326649,19113.0,19108.0,0.68116915]
[1673622523151,0.3,19112.0,19108.0,0.68116915]
[1673622523411,0.1,19111.0,19108.0,0.434868]
[1673622523642,0.34948598,19112.0,19106.0,0.1]
[1673622523887,0.24273752,19110.0,19106.0,0.99686514]
[1673622524134,0.3,19109.0,19107.0,0.58698638]
[1673622524380,0.24273752,19110.0,19109.0,0.89999999]
[1673622524628,0.49073874,19112.0,19109.0,1.22664899]
[1673622524871,0.19911474,19111.0,19109.0,1.11030493]
[1673622525122,0.19911474,19111.0,19109.0,0.89999999]
[1673622525366,0.24233779,19110.0,19109.0,0.89999999]
[1673622525883,0.3,19112.0,19110.0,0.48467557]
[1673622526856,0.326649,19111.0,19110.0,0.48467557]
[1673622527093,0.626649,19111.0,19110.0,0.48467557]
[1673622527345,0.626649,19111.0,19109.0,0.89999999]
[1673622527346,0.75139199,19111.0,19109.0,0.89999999]
[1673622527588,0.1,19109.0,19104.0,0.13932619]
[1673622527833,0.326649,19108.0,19104.0,0.13932619]
[1673622528065,0.3,19107.0,19104.0,0.7511229]
[1673622528634,0.02474299,19109.0,19107.0,0.62761651]
[1673622528883,0.15306,19112.0,19108.0,0.326649]
[1673622529134,2.6261,19115.0,19109.0,0.21030494]
[1673622529398,0.04120373,19116.0,19110.0,0.21030494]
[1673622529647,1.56789791,19117.0,19111.0,0.21030494]
[1673622529897,1.63956651,19117.0,19112.0,0.21030494]
[1673622530147,0.8151176,19116.0,19112.0,0.21030494]
[1673622530396,0.326649,19115.0,19108.0,0.47351029]
[1673622530640,1.29132739,19116.0,19108.0,0.21030494]
[1673622530881,0.62779252,19115.0,19109.0,0.21030494]
[1673622531120,0.1,19114.0,19110.0,0.21030494]
[1673622531367,0.4,19115.0,19111.0,0.21030494]
[1673622531610,0.3,19114.0,19109.0,1.16802957]
[1673622531881,0.3,19114.0,19109.0,0.24934022]
[1673622532121,0.3,19114.0,19109.0,0.21030494]
[1673622532374,0.1,19116.0,19110.0,0.67436743]
[1673622532614,0.1,19116.0,19111.0,0.21030494]
[1673622532861,0.1,19116.0,19112.0,0.21030494]
[1673622533340,0.326649,19115.0,19112.0,0.21030494]
[1673622533582,0.1,19116.0,19110.0,0.49087598]
[1673622533822,0.326649,19115.0,19110.0,0.21030494]
[1673622534052,0.4,19114.0,19109.0,0.39060816]
[1673622534293,0.1,19114.0,19108.0,0.49023786]
[1673622534536,0.1,19114.0,19109.0,0.58671981]
[1673622534814,0.11,19114.0,19109.0,0.21030494]
[1673622535074,0.11,19114.0,19108.0,0.49023786]
[1673622535315,0.426649,19113.0,19106.0,0.39005376]
[1673622535567,0.1,19111.0,19106.0,0.21030494]
[1673622535802,0.1,19111.0,19105.0,0.62661019]
[1673622536125,0.14,19111.0,19105.0,0.62661019]
[1673622536304,0.14,19111.0,19104.0,0.5287688]
[1673622536305,0.326649,19110.0,19104.0,0.5287688]
[1673622536546,0.21249001,19111.0,19104.0,0.72652182]
[1673622536547,0.3,19109.0,19104.0,0.72652182]
[1673622536813,0.33,19109.0,19104.0,0.72652182]
[1673622537035,0.1,19108.0,19104.0,0.13932619]
[1673622537512,0.33,19109.0,19104.0,0.13932619]
[1673622537761,0.3,19108.0,19104.0,0.44963113]
[1673622537993,0.03,19109.0,19104.0,0.44963113]
[1673622538244,0.4,19110.0,19105.0,0.1]
[1673622538245,0.3,19110.0,19105.0,0.1]
[1673622538503,0.3,19110.0,19106.0,0.21030494]
[1673622538751,0.1,19109.0,19106.0,0.21030494]
[1673622538997,0.526229,19110.0,19105.0,0.1]
[1673622539231,0.1,19109.0,19105.0,0.31030494]
[1673622539471,0.1,19109.0,19105.0,0.1]
[1673622539729,0.1726229,19109.0,19105.0,0.1]
[1673622539987,0.4726229,19109.0,19104.0,0.23932619]
[1673622540217,0.4726229,19109.0,19104.0,0.44963113]
[1673622540451,0.3726229,19109.0,19105.0,0.1]
[1673622540688,0.3,19109.0,19105.0,0.31030494]
[1673622541230,1.433,19111.0,19106.0,0.83172401]
[1673622541473,1.5763,19111.0,19107.0,0.63695394]
[1673622541704,1.433,19111.0,19108.0,0.21030494]
[1673622542506,1.433,19111.0,19107.0,0.1]
[1673622542748,1.433,19111.0,19107.0,0.55984631]
[1673622543001,1.96545306,19111.0,19105.0,0.50455724]
[1673622543248,0.1,19110.0,19104.0,0.74352812]
[1673622543511,0.1,19110.0,19104.0,0.7704829]
[1673622543746,0.99597227,19110.0,19104.0,0.13932619]
[1673622544006,0.326649,19109.0,19104.0,0.34963113]
[1673622544238,0.4,19108.0,19104.0,0.13932619]
[1673622544743,0.3,19108.0,19106.0,0.5644595]
[1673622544977,1.283539,19111.0,19107.0,0.326649]
[1673622545225,1.283539,19111.0,19106.0,0.21030494]
[1673622545226,1.283539,19111.0,19108.0,0.21030494]
[1673622545694,1.283539,19111.0,19105.0,0.67124022]
[1673622545945,0.72443901,19110.0,19104.0,0.13932619]
[1673622546188,0.48942696,19109.0,19104.0,0.13932619]
[1673622546446,0.626649,19108.0,19104.0,0.13932619]
[1673622546691,0.3,19108.0,19104.0,0.13932619]
[1673622546943,0.82471291,19107.0,19104.0,0.13932619]
[1673622547173,0.1,19105.0,19103.0,1.08623727]
[1673622547418,0.326649,19104.0,19103.0,1.08623727]
[1673622547679,0.326649,19104.0,19103.0,0.80265927]
[1673622547680,0.626649,19104.0,19103.0,0.80265927]
[1673622547936,0.626649,19104.0,19099.0,0.00418742]
[1673622547937,1.06772028,19104.0,19099.0,0.00418742]
[1673622548179,0.4,19103.0,19099.0,0.00418742]
[1673622548426,0.326649,19102.0,19099.0,0.00418742]
[1673622548660,0.4,19103.0,19099.0,0.00418742]
[1673622548913,0.54914246,19103.0,19099.0,0.00418742]
[1673622549153,0.50009795,19102.0,19099.0,0.00418742]
[1673622549403,1.29881748,19101.0,19098.0,1.11007534]
[1673622549651,1.540914,19100.0,19097.0,0.00418742]
[1673622549897,0.3085,19101.0,19097.0,0.00418742]
[1673622550157,0.1802917,19102.0,19097.0,0.00418742]
[1673622550158,0.02474299,19102.0,19097.0,0.00418742]
[1673622550400,0.02474299,19102.0,19097.0,0.62195561]
[1673622550647,0.15554871,19104.0,19097.0,0.00418742]
[1673622550893,0.15554871,19103.0,19097.0,0.00418742]
[1673622551156,0.743449,19102.0,19097.0,0.00418742]
[1673622551497,0.743449,19102.0,19097.0,0.21449236]
[1673622551498,0.49045453,19102.0,19097.0,0.21449236]
[1673622551713,0.626649,19101.0,19097.0,0.21449236]
[1673622551972,0.1,19099.0,19097.0,0.00418742]
[1673622552209,0.4,19099.0,19097.0,0.00418742]
[1673622552457,0.3,19099.0,19097.0,0.00418742]
[1673622553177,0.40888678,19103.0,19097.0,0.21449236]
[1673622553416,0.47234871,19104.0,19098.0,0.21030494]
[1673622553661,0.39031748,19104.0,19099.0,0.21030494]
[1673622553939,1.5041,19105.0,19100.0,0.31030494]
[1673622554183,1.5041,19105.0,19101.0,0.21030494]
[1673622554692,0.326649,19104.0,19101.0,0.21030494]
[1673622554929,0.1,19103.0,19097.0,0.00418742]
[1673622555176,0.326649,19102.0,19097.0,0.00418742]
[1673622555456,0.50038601,19103.0,19097.0,0.00418742]
[1673622555699,0.3,19102.0,19097.0,0.21449236]
[1673622555945,0.4,19102.0,19097.0,0.86296503]
[1673622556181,0.4,19102.0,19098.0,0.78334816]
[1673622556418,0.1,19102.0,19098.0,0.21030494]
[1673622556658,0.1,19102.0,19098.0,0.77250692]
[1673622556905,0.1,19102.0,19099.0,0.38755563]
[1673622557155,2.86862504,19109.0,19100.0,1.14626546]
[1673622557399,1.42903234,19109.0,19101.0,0.71961646]
[1673622557638,1.42903234,19109.0,19102.0,0.71961646]
[1673622557639,1.1793,19109.0,19102.0,0.71961646]
[1673622557887,1.1793,19109.0,19103.0,0.71933882]
[1673622558138,1.1793,19109.0,19104.0,0.21030494]
[1673622558383,1.1793,19109.0,19105.0,0.79436324]
[1673622558384,0.7625,19109.0,19105.0,0.79436324]
[1673622558644,0.002,19110.0,19106.0,0.21030494]
[1673622558932,0.002,19110.0,19108.0,0.1]
[1673622559188,0.002,19110.0,19109.0,0.53695394]
[1673622559428,0.002,19110.0,19109.0,1.04589654]
[1673622559672,0.002,19110.0,19109.0,1.57212924]
[1673622559923,0.002,19110.0,19109.0,1.3618243]
[1673622560205,0.002,19110.0,19109.0,0.93429153]
[1673622560451,0.002,19110.0,19109.0,0.8355916]
[1673622560686,0.002,19110.0,19109.0,0.326649]
[1673622561453,0.002,19110.0,19107.0,0.67226386]
[1673622561926,0.40448064,19113.0,19108.0,0.61272599]
[1673622562179,0.3,19113.0,19109.0,0.21030494]
[1673622562649,0.3,19113.0,19107.0,0.50728072]
[1673622562907,0.3,19113.0,19108.0,0.69075386]
[1673622562908,0.1085,19112.0,19108.0,0.69075386]
[1673622563140,0.3085,19112.0,19108.0,0.9010588]
[1673622564116,0.30295092,19115.0,19109.0,0.21030494]
[1673622564373,0.0183033,19116.0,19110.0,0.21030494]
[1673622564612,0.0183033,19116.0,19111.0,1.06526515]
[1673622564843,0.0183033,19116.0,19112.0,0.71758566]
[1673622565089,0.04402092,19116.0,19113.0,0.21030494]
[1673622565610,0.0183033,19116.0,19114.0,0.21030494]
[1673622565858,0.0183033,19116.0,19115.0,1.08421713]
[1673622566112,0.0183033,19116.0,19115.0,1.59149785]
[1673622566360,0.0183033,19116.0,19115.0,1.38119291]
[1673622567426,0.01569791,19117.0,19116.0,0.1]
[1673622567657,0.01569791,19117.0,19116.0,1.4990588]
[1673622567908,0.01569791,19117.0,19116.0,1.3990588]
[1673622568149,0.01569791,19117.0,19116.0,0.326649]
[1673622568663,0.01569791,19117.0,19114.0,0.50197065]
[1673622568914,0.01569791,19117.0,19112.0,0.65452858]
[1673622569440,0.01569791,19117.0,19113.0,0.59009328]
[1673622569755,0.49608055,19121.0,19113.0,0.59009328]
[1673622569756,0.54291837,19130.0,19116.0,0.45525]
[1673622570058,0.54291837,19130.0,19124.0,0.1937]
[1673622570059,0.12580349,19130.0,19124.0,0.1937]
[1673622570320,0.02035921,19131.0,19127.0,0.26141]
[1673622570575,0.15379783,19136.0,19130.0,0.26133]
[1673622570576,0.08708981,19134.0,19130.0,0.26133]
[1673622570821,0.02916146,19135.0,19131.0,0.82165926]
[1673622571072,0.02916146,19135.0,19132.0,1.0319642]
[1673622571073,0.02092851,19135.0,19132.0,1.0319642]
[1673622571331,0.04842793,19136.0,19134.0,0.5262327]
[1673622571597,0.04842793,19136.0,19135.0,1.8194869]
[1673622571815,0.0005,19140.0,19139.0,0.5262327]
[1673622572054,0.0005,19140.0,19139.0,0.8528817]
[1673622572288,0.0005,19140.0,19139.0,1.4187661]
[1673622572530,0.0005,19140.0,19139.0,1.34585628]
[1673622572808,0.0005,19140.0,19139.0,0.8528817]
[1673622573073,0.06351,19140.0,19139.0,0.326649]
[1673622573314,0.02695445,19139.0,19136.0,0.30971]
[1673622573558,0.02695445,19139.0,19137.0,0.8528817]
[1673622573787,0.0005,19140.0,19138.0,1.70710628]
[1673622574047,0.02328919,19140.0,19139.0,1.34585628]
[1673622574294,0.02328919,19140.0,19139.0,0.81962358]
[1673622574542,0.0005,19140.0,19139.0,0.81962358]
[1673622575039,0.0005,19140.0,19139.0,1.60710628]
[1673622575782,0.02241506,19140.0,19139.0,1.34585628]
[1673622576023,0.06351,19140.0,19139.0,0.81962358]
[1673622576260,0.06351,19140.0,19139.0,0.326709]
[1673622576506,0.0005,19140.0,19139.0,1.06324664]
[1673622576754,0.0005,19140.0,19139.0,2.12703294]
[1673622577244,0.1,19144.0,19140.0,0.65880287]
[1673622577483,0.1,19144.0,19143.0,0.5262327]
[1673622577714,0.1,19144.0,19143.0,1.65582722]
[1673622577965,0.1,19144.0,19143.0,1.44552228]
[1673622578459,0.017033,19150.0,19149.0,0.6262327]
[1673622578706,0.017033,19150.0,19149.0,1.3990981]
[1673622578942,0.017033,19150.0,19149.0,1.88816204]
[1673622579465,0.001,19154.0,19149.0,1.6778571]
[1673622579703,0.001,19154.0,19151.0,0.1]
[1673622579951,0.001,19154.0,19152.0,1.55191658]
[1673622580200,0.001,19154.0,19153.0,1.81297658]
[1673622580455,0.06401,19154.0,19153.0,0.326315]
[1673622580707,0.670411,19154.0,19144.0,0.4]
[1673622580952,0.670411,19154.0,19144.0,0.3]
[1673622580953,0.66738265,19150.0,19144.0,0.3]
[1673622581197,0.272247,19149.0,19144.0,0.3]
[1673622581430,0.326166,19148.0,19144.0,0.3]
[1673622581670,0.672247,19147.0,19144.0,0.3]